bitfinex/quotes_ETHUSD_20241106
["timestamp","ask_amount","ask_price","bid_price","bid_amount"]
[1730890194668,4.59554,2628.9,2628.4,7.60903]
[1730890194850,0.7916,2628.9,2628.5,3.80434]
[1730890195054,0.7916,2628.9,2628.4,3.80451]
[1730890195373,0.7916,2628.9,2628.5,3.80435]
[1730890196031,8.39949,2628.9,2628.4,3.80456]
[1730890196230,4.60907,2628.7,2628.2,3.80478]
[1730890196431,3.80433,2628.6,2628.2,3.80478]
[1730890196676,0.8049,2628.7,2628.3,3.8047]
[1730890197237,0.8049,2628.7,2628.3,3.80474]
[1730890197866,4.60906,2628.7,2628.2,3.80478]
[1730890198776,4.60906,2628.7,2628.0,6.80506]
[1730890198929,3.80444,2628.6,2628.0,6.80506]
[1730890199131,3.80453,2628.5,2628.0,10.61014]
[1730890199776,3.80453,2628.5,2628.0,6.80506]
[1730890199933,4.62869,2628.4,2628.0,3.0]
[1730890200136,4.62869,2628.4,2628.0,3.80513]
[1730890200335,0.824,2628.4,2627.9,6.8053]
[1730890200646,3.80476,2628.3,2627.9,6.8053]
[1730890200854,0.824,2628.4,2627.9,6.80523]
[1730890201182,0.824,2628.4,2628.2,3.80485]
[1730890201374,0.824,2628.4,2628.1,3.80501]
[1730890202387,4.62865,2628.4,2627.9,6.8052]
[1730890202690,3.80488,2628.3,2627.8,10.61082]
[1730890202981,4.62861,2628.4,2627.8,6.80542]
[1730890203186,3.8049,2628.2,2627.8,3.0]
[1730890203345,0.8126,2628.1,2627.7,3.80551]
[1730890203551,0.8126,2628.1,2627.8,3.80545]
[1730890203747,0.8126,2628.1,2627.6,3.80561]
[1730890203748,4.61773,2628.1,2627.6,3.80561]
[1730890203964,0.8035,2628.0,2627.5,3.80585]
[1730890204143,3.80539,2627.9,2627.3,3.80618]
[1730890204695,4.60897,2627.8,2627.3,3.80618]
[1730890205399,4.60897,2627.8,2627.0,3.80653]
[1730890205400,3.80575,2627.6,2627.0,3.80653]
[1730890205686,0.8035,2627.5,2627.3,3.80611]
[1730890205846,0.8035,2627.5,2627.1,3.80639]
[1730890206051,0.8035,2627.5,2627.3,3.80618]
[1730890206592,0.7899,2627.9,2627.7,3.80552]
[1730890206949,0.7899,2628.2,2627.7,3.80547]
[1730890207166,0.7899,2628.2,2627.3,4.60297]
[1730890207167,3.80503,2628.1,2627.6,3.80574]
[1730890207386,0.7546,2628.0,2627.2,3.0]
[1730890207571,3.80605,2627.4,2626.9,3.80668]
[1730890208052,0.7546,2627.5,2626.9,3.80665]
[1730890208252,3.80605,2627.4,2626.9,3.80665]
[1730890208679,3.80604,2627.4,2626.9,3.80665]
[1730890208875,3.80604,2627.4,2626.7,3.80692]
[1730890209098,0.7546,2627.5,2626.8,0.07613046]
[1730890209393,0.7546,2627.5,2627.2,3.80631]
[1730890210266,0.7546,2627.5,2627.1,3.80646]
[1730890211353,0.7546,2627.5,2626.8,3.80681]
[1730890211354,1.210636,2627.5,2626.8,3.80681]
[1730890211561,4.57115,2627.4,2626.9,3.80674]
[1730890212163,4.57112,2627.4,2626.8,3.80681]
[1730890212314,3.80619,2627.3,2626.8,3.80681]
[1730890212467,4.57112,2627.4,2626.8,3.80681]
[1730890212468,0.8298,2627.1,2626.8,3.80681]
[1730890212672,4.63638,2627.1,2626.6,6.80711]
[1730890212916,4.63638,2627.1,2626.5,3.80734]
[1730890213087,3.80675,2627.0,2626.5,3.80734]
[1730890213272,0.8028,2626.8,2626.4,7.67187208]
[1730890213473,0.8028,2626.8,2626.5,3.80727]
[1730890213708,0.8028,2626.8,2626.7,3.80705]
[1730890214369,0.8028,2626.8,2626.6,3.80706]
[1730890214575,0.8028,2626.8,2626.6,7.61419]
[1730890214811,0.8028,2626.8,2626.7,3.80705]
[1730890215179,0.8211,2627.1,2626.8,3.80678]
[1730890215510,0.8211,2627.1,2626.9,3.80668]
[1730890215813,0.8211,2627.1,2626.9,3.80675]
[1730890216024,0.8211,2627.1,2626.8,3.80682]
[1730890216233,0.8211,2627.1,2626.9,3.80674]
[1730890216438,0.8211,2627.1,2626.9,7.61342]
[1730890216733,0.8211,2627.1,2626.9,7.61336]
[1730890216916,0.8211,2627.1,2626.9,3.80668]
[1730890218015,1.28383,2627.1,2626.4,0.05708208]
[1730890218205,0.8211,2627.1,2626.6,3.80716]
[1730890218412,0.8211,2627.1,2626.8,7.61371]
[1730890218631,0.8211,2627.1,2626.8,3.80682]
[1730890219000,0.8211,2627.1,2626.7,3.80703]
[1730890219720,0.8211,2627.1,2626.8,3.80687]
[1730890221036,0.8211,2627.1,2626.6,3.80717]
[1730890221037,0.46275,2627.0,2626.6,3.80717]
[1730890221197,4.26938,2627.0,2626.6,3.80717]
[1730890221402,0.46275,2627.0,2626.6,3.80717]
[1730890222035,0.46275,2627.0,2626.6,3.80713]
[1730890222335,0.46275,2627.0,2626.8,3.80683]
[1730890222536,0.8211,2627.1,2626.8,3.80683]
[1730890222904,0.8211,2627.1,2626.7,3.80704]
[1730890223908,8.4342,2627.1,2626.5,3.80734]
[1730890224250,8.4342,2627.1,2626.6,3.80718]
[1730890224426,5.471,2627.1,2626.6,3.80718]
[1730890225026,5.471,2627.1,2626.5,3.80734]
[1730890225027,5.471,2627.1,2626.7,3.80704]
[1730890225224,1.66452,2627.1,2626.7,3.80704]
[1730890225503,3.80668,2627.0,2626.5,3.80721]
[1730890225841,5.47102,2627.1,2626.6,3.8071]
[1730890226134,1.66452,2627.1,2626.7,3.80703]
[1730890227000,0.8211,2627.1,2626.8,3.80684]
[1730890227934,0.8211,2627.1,2626.7,3.80703]
[1730890227935,0.8149,2627.5,2627.0,3.80649]
[1730890228099,0.8149,2627.5,2627.1,3.80644]
[1730890228301,0.8149,2627.5,2626.7,0.7888]
[1730890228505,4.63669,2627.3,2626.9,3.80674]
[1730890228934,0.84428,2627.2,2626.9,3.80674]
[1730890229942,3.8065,2627.1,2626.7,3.80701]
[1730890230441,0.8262,2627.0,2626.8,4.08904335]
[1730890230648,0.8262,2627.0,2626.8,3.8069]
[1730890232009,0.7534,2627.3,2626.9,3.80675]
[1730890232209,0.7534,2627.3,2627.0,0.05447463]
[1730890232836,0.7534,2627.3,2627.0,3.86101463]
[1730890233538,0.8036,2627.8,2627.2,3.80633]
[1730890233743,0.8036,2627.8,2627.5,3.80582]
[1730890233917,2.034488,2627.8,2627.5,3.80582]
[1730890234114,2.034488,2627.8,2627.6,0.05578485]
[1730890235259,2.034488,2627.8,2627.6,3.80572]
[1730890235260,0.8036,2627.8,2627.6,3.80572]
[1730890235558,0.8036,2627.8,2627.7,0.05574271]
[1730890236845,0.7774,2628.0,2627.7,3.86134271]
[1730890237058,0.7774,2628.0,2627.8,3.80546]
[1730890237253,3.80469,2628.4,2627.8,3.80546]
[1730890237254,0.7774,2628.3,2627.8,3.80546]
[1730890237463,3.80489,2628.2,2627.9,0.05533279]
[1730890238064,3.80489,2628.2,2627.6,3.80567]
[1730890238248,4.58252,2628.1,2628.0,0.05529847]
[1730890238416,3.80519,2628.0,2627.4,3.80591]
[1730890238617,0.7774,2627.7,2627.5,0.3377727]
[1730890238856,0.7774,2627.7,2627.5,0.05544257]
[1730890239364,0.7774,2627.7,2627.3,0.8315]
[1730890239525,0.7774,2627.7,2627.6,0.05544335]
[1730890239857,4.56479,2628.0,2627.6,0.05542505]
[1730890240047,3.80548,2627.8,2627.6,0.05542505]
[1730890240354,7.61103,2627.8,2627.3,3.8061]
[1730890240541,7.61103,2627.8,2627.7,0.05537852]
[1730890240751,0.7596,2627.7,2627.3,3.8061]
[1730890240935,4.56524,2627.7,2627.3,3.8061]
[1730890241456,0.7596,2627.7,2627.3,7.6122]
[1730890241633,0.7596,2627.7,2627.3,3.8061]
[1730890242032,4.56522,2627.7,2627.3,3.8061]
[1730890242267,3.80589,2627.6,2627.2,3.80632]
[1730890242939,7.61178,2627.6,2627.2,3.80632]
[1730890243128,3.80589,2627.6,2626.9,0.8147]
[1730890243471,0.7942,2627.4,2627.1,3.80646]
[1730890243761,0.7942,2627.4,2627.2,3.80621]
[1730890244066,0.7942,2627.4,2627.0,3.8066]
[1730890244671,4.60032,2627.4,2626.9,4.62144]
[1730890244873,5.060363,2627.4,2626.8,3.80689]
[1730890245029,3.80633,2627.2,2626.8,3.80689]
[1730890245534,3.80633,2627.2,2626.7,7.58124]
[1730890246031,1.254223,2627.4,2626.9,3.80665]
[1730890246231,5.060263,2627.4,2626.9,3.80665]
[1730890247042,8.866433,2627.4,2626.9,3.80665]
[1730890247236,3.8062,2627.3,2627.0,0.05385999]
[1730890247435,4.6928463,2627.3,2626.8,3.80684]
[1730890247659,4.6928463,2627.3,2626.9,0.05389434]
[1730890249631,0.460023,2627.4,2627.0,3.8066]
[1730890249884,4.55986,2627.5,2627.1,0.05382565]
[1730890250712,0.7971,2627.7,2627.4,3.80596]
[1730890250908,0.7971,2627.9,2627.6,3.80572]
[1730890251291,0.7971,2627.9,2627.7,0.05351853]
[1730890251817,0.7971,2627.9,2627.5,3.80582]
[1730890252281,0.7971,2627.9,2627.6,0.05358947]
[1730890252710,4.60242,2627.9,2627.6,0.05358947]
[1730890252916,5.4888219,2627.9,2627.6,0.05358947]
[1730890253116,9.2942319,2627.9,2627.6,0.05358947]
[1730890253311,5.4888219,2627.9,2627.6,0.05358947]
[1730890253545,3.80547,2627.8,2627.4,3.80604]
[1730890253824,3.80547,2627.8,2627.3,7.6122]
[1730890253987,3.80547,2627.8,2627.3,3.80608]
[1730890254193,4.73489919,2627.8,2627.4,0.0536854]
[1730890255206,3.80575,2627.7,2627.4,0.0536854]
[1730890255397,3.80589,2627.5,2626.9,3.80676]
[1730890255594,4.62787,2627.4,2626.9,3.80676]
[1730890255792,4.62787,2627.4,2627.0,0.0520766]
[1730890256126,3.8062,2627.3,2627.0,0.0520766]
[1730890256530,3.8062,2627.3,2626.8,4.60634]
[1730890256733,3.8062,2627.3,2627.1,0.05204226]
[1730890256933,3.8062,2627.3,2626.8,4.60634]
[1730890257111,3.8062,2627.3,2627.2,0.05200792]
[1730890257438,4.7339376,2627.3,2627.2,0.05200792]
[1730890257604,3.8062,2627.3,2626.7,3.80704]
[1730890257799,3.80646,2627.2,2626.8,0.05240237]
[1730890258001,3.80655,2627.1,2626.6,4.59009]
[1730890258318,3.80646,2627.2,2626.7,0.05070755]
[1730890258319,0.8266,2627.0,2626.7,0.05070755]
[1730890258695,0.8266,2627.0,2626.5,3.80723]
[1730890258895,0.8266,2627.0,2626.8,0.05091856]
[1730890259139,4.63484,2627.2,2626.8,3.8069]
[1730890259296,4.63483,2627.2,2626.9,0.05088421]
[1730890259602,3.80649,2627.1,2626.7,3.80705]
[1730890259796,4.63483,2627.2,2626.8,0.05091856]
[1730890259997,4.63483,2627.2,2626.7,3.80699]
[1730890260244,0.7848,2627.1,2626.6,0.0761388]
[1730890260406,0.7848,2627.1,2626.8,0.05091856]
[1730890260407,0.7948,2627.1,2626.8,0.05091856]
[1730890260729,3.80705,2626.7,2626.2,3.80777]
[1730890261109,3.80705,2626.7,2626.3,0.04950959]
[1730890261430,4.59183,2626.8,2626.3,3.85713959]
[1730890261633,0.7848,2626.8,2626.4,0.04947522]
[1730890261836,0.7823,2627.0,2626.4,0.87717522]
[1730890262040,3.80699,2626.8,2626.4,0.04947522]
[1730890262191,3.80731,2626.6,2626.4,0.04947522]
[1730890262398,3.80731,2626.6,2626.0,7.58969]
[1730890262638,3.80731,2626.6,2626.1,0.04957832]
[1730890262934,7.61461,2626.6,2626.1,0.04957832]
[1730890263140,3.8073,2626.6,2626.1,0.04957832]
[1730890263297,3.80702,2626.8,2626.2,3.80777]
[1730890263495,3.80705,2626.7,2626.1,0.04957832]
[1730890263806,3.80728,2626.6,2626.3,0.04950959]
[1730890264010,3.80728,2626.6,2626.2,0.04954395]
[1730890264230,3.80728,2626.6,2626.3,0.04950959]
[1730890264535,3.80728,2626.6,2626.0,8.39767]
[1730890264696,3.80728,2626.6,2626.4,0.04947522]
[1730890264895,4.61929107,2626.6,2626.1,3.80786]
[1730890265204,3.80707,2626.7,2626.5,0.04968163]
[1730890265408,3.80712,2626.7,2626.6,0.04964727]
[1730890265632,3.80733,2626.6,2626.1,3.80789]
[1730890265816,3.8072,2626.6,2626.1,3.80789]
[1730890265992,3.80712,2626.7,2626.2,0.04975243]
[1730890266196,4.69728807,2626.7,2626.2,3.85741243]
[1730890266419,3.80731,2626.6,2626.2,0.04975243]
[1730890266633,3.80731,2626.6,2626.0,3.7817]
[1730890266808,3.80731,2626.6,2626.1,3.8079]
[1730890267133,0.8182,2626.4,2626.2,0.04978084]
[1730890267429,3.80763,2626.3,2625.8,3.80829]
[1730890267843,3.80763,2626.3,2625.9,0.04988395]
[1730890268038,4.62569,2626.4,2626.0,3.80806]
[1730890268203,0.8182,2626.4,2626.1,0.04818395]
[1730890268537,4.62572,2626.4,2626.1,0.04818395]
[1730890269505,5.469028,2626.4,2626.1,0.04818395]
[1730890269907,5.469028,2626.4,2625.9,3.80819]
[1730890270428,3.80764,2626.3,2626.0,0.04816159]
[1730890271261,0.843308,2626.4,2626.0,3.85615159]
[1730890271414,3.80736,2626.5,2626.1,0.7757]
[1730890271604,4.57137,2626.4,2626.2,0.04650164]
[1730890271938,4.57137,2626.4,2625.9,3.80814]
[1730890272317,3.80766,2626.3,2626.0,0.04662711]
[1730890272529,4.57137,2626.4,2626.0,0.04662711]
[1730890272530,3.8078,2626.2,2626.0,0.04662711]
[1730890272729,3.8078,2626.2,2625.8,3.80834]
[1730890272931,3.8078,2626.2,2626.1,0.04659274]
[1730890273226,0.8226,2626.0,2625.5,4.61658]
[1730890274024,3.80822,2625.9,2625.5,4.61658]
[1730890274356,3.80834,2625.9,2625.4,3.80892]
[1730890275063,4.63068,2626.0,2625.5,3.8087]
[1730890275639,3.80822,2625.9,2625.5,3.8087]
[1730890276151,3.80822,2625.9,2625.4,7.61781]
[1730890276537,0.7689,2626.9,2626.0,3.80807]
[1730890276843,0.7689,2626.5,2626.1,3.80785]
[1730890277243,0.7689,2626.5,2625.9,4.56408]
[1730890277557,3.80765,2626.3,2626.2,0.04542215]
[1730890277737,3.80765,2626.3,2625.7,8.42882]
[1730890277938,3.80765,2626.3,2626.2,0.04542215]
[1730890278152,3.80765,2626.3,2625.8,3.80833]
[1730890278353,3.80765,2626.3,2626.2,0.04542215]
[1730890278539,4.691818,2626.3,2625.8,3.80833]
[1730890279466,0.884168,2626.3,2626.0,3.80802]
[1730890279665,0.884168,2626.3,2625.9,0.04552527]
[1730890279845,4.26511,2626.4,2625.9,3.85373527]
[1730890280175,4.26511,2626.4,2625.7,4.6204]
[1730890280176,4.26511,2626.4,2626.0,0.04502503]
[1730890280628,4.26511,2626.4,2625.8,3.80835]
[1730890281230,3.80765,2626.3,2625.9,0.04356461]
[1730890283834,3.80778,2626.2,2625.9,0.04356461]
[1730890284552,0.7942,2626.1,2625.9,0.04356461]
[1730890284862,4.60219,2626.1,2625.9,0.04356461]
[1730890285066,4.60219,2626.1,2626.0,0.04379488]
[1730890285244,4.60219,2626.1,2625.6,3.80863]
[1730890285583,4.60219,2626.1,2625.7,0.04416335]
[1730890285784,0.9217259,2626.0,2625.7,0.04416335]
[1730890285941,4.60219,2626.1,2625.7,3.85264335]
[1730890286444,4.60219,2626.1,2625.7,0.04416335]
[1730890287269,0.7942,2626.1,2625.7,3.85259335]
[1730890288427,4.60215,2626.1,2625.7,3.85259335]
[1730890288739,0.460215,2626.0,2625.7,3.85259335]
[1730890290503,0.8122,2626.4,2625.9,4.61264]
[1730890291025,4.59361,2626.6,2626.1,7.61569]
[1730890291235,3.80735,2626.5,2626.1,3.80784]
[1730890291443,4.647441,2626.5,2626.2,0.04399925]
[1730890291645,0.840091,2626.5,2626.2,0.04399925]
[1730890292318,4.647461,2626.5,2626.2,0.04399925]
[1730890292654,3.80749,2626.4,2626.2,0.04399925]
[1730890292946,4.647451,2626.5,2626.0,3.80806]
[1730890293316,4.647451,2626.5,2626.1,0.04403362]
[1730890293616,4.647451,2626.5,2626.1,3.85194362]
[1730890294147,0.840091,2626.5,2626.1,3.85194362]
[1730890294610,0.840091,2626.5,2626.1,3.85185362]
[1730890295330,0.840091,2626.5,2626.2,3.80778]
[1730890295841,0.840091,2626.5,2626.3,0.04396488]
[1730890296143,0.840091,2626.5,2626.2,3.80778]
[1730890296343,0.840091,2626.5,2626.4,0.04393052]
[1730890296543,0.840091,2626.5,2626.3,0.04396488]
[1730890296731,0.840091,2626.5,2626.1,3.80778]
[1730890296930,0.9240991,2626.4,2626.1,3.80778]
[1730890297109,4.59362,2626.6,2626.1,3.80778]
[1730890297444,4.59362,2626.6,2626.0,3.80804]
[1730890297607,4.59362,2626.6,2626.1,3.80791]
[1730890299412,3.80736,2626.5,2626.1,3.80791]
[1730890300822,3.8075,2626.4,2626.0,3.80806]
[1730890301121,4.62808929,2626.4,2625.9,4.61269]
[1730890301316,4.62808929,2626.4,2626.0,3.80806]
[1730890301547,0.82058929,2626.4,2626.0,3.80806]
[1730890302424,0.82058929,2626.4,2626.0,3.80799]
[1730890303246,0.82058929,2626.4,2625.8,3.80825]
[1730890303410,3.80779,2626.2,2625.8,3.80825]
[1730890307054,0.7872,2626.3,2625.8,3.80825]
[1730890307354,4.59486,2626.3,2625.9,3.85220079]
[1730890307721,0.7872,2626.3,2626.0,3.80805]
[1730890307922,4.56335,2626.5,2626.1,3.80785]
[1730890308112,5.400399,2626.5,2626.1,3.85177873]
[1730890308852,1.593049,2626.5,2626.2,3.80774]
[1730890309350,1.593049,2626.5,2626.3,0.04385999]
[1730890309953,1.593049,2626.5,2626.4,0.04382563]
[1730890310314,5.400399,2626.5,2626.1,3.80785]
[1730890310513,5.400399,2626.5,2626.4,0.04384116]
[1730890310740,5.400399,2626.5,2626.1,3.60825]
[1730890311153,5.400399,2626.5,2626.2,0.04390989]
[1730890311356,0.9207609,2626.4,2626.2,0.04390989]
[1730890312218,0.8192,2626.8,2626.4,3.80742]
[1730890312417,0.8192,2626.8,2626.4,4.55912]
[1730890312653,0.8192,2626.8,2626.5,0.0438068]
[1730890313346,3.80713,2626.7,2626.5,0.0438068]
[1730890313514,0.462633,2626.6,2626.2,4.55937]
[1730890314455,4.62612,2626.8,2626.4,3.80747]
[1730890317468,0.8192,2626.8,2626.4,3.80747]
[1730890317658,0.8192,2626.8,2626.4,3.80737]
[1730890318789,3.80648,2627.1,2626.4,0.7738]
[1730890318999,3.80635,2627.2,2626.8,3.80684]
[1730890319280,1.532645,2627.2,2626.8,8.40117]
[1730890319483,4.61631,2627.3,2626.8,0.7875]
[1730890319668,3.80641,2627.2,2626.8,0.7875]
[1730890320464,3.80641,2627.2,2626.8,4.59438]
[1730890320682,4.6163,2627.3,2626.8,4.59438]
[1730890320855,3.80605,2627.4,2627.0,3.80655]
[1730890321056,4.56406,2627.5,2627.0,3.80655]
[1730890321368,5.401043,2627.5,2627.0,3.80655]
[1730890321569,1.595083,2627.5,2627.1,3.80641]
[1730890322585,1.595083,2627.5,2627.2,0.04310796]
[1730890322971,1.595083,2627.5,2627.0,3.80655]
[1730890323279,0.7581,2627.5,2627.3,0.04307362]
[1730890323474,0.7581,2627.5,2627.1,3.80647]
[1730890323662,0.7581,2627.5,2627.4,0.04303928]
[1730890324192,0.7581,2627.5,2627.1,3.80647]
[1730890324486,4.564,2627.5,2627.4,0.04303928]
[1730890324686,5.400977,2627.5,2627.0,3.80654]
[1730890325100,5.400977,2627.5,2627.1,0.0431423]
[1730890325990,0.836977,2627.5,2627.2,4.57062]
[1730890326191,0.836977,2627.5,2627.2,4.61230387]
[1730890326395,4.642877,2627.5,2627.2,0.80598387]
[1730890327895,4.60304,2627.9,2627.3,3.80618]
[1730890328062,4.60266,2628.2,2627.7,3.80554]
[1730890328262,3.80534,2627.9,2627.5,3.80575]
[1730890328999,3.80534,2627.9,2627.6,0.04116395]
[1730890329205,3.80517,2628.0,2627.5,3.80582]
[1730890329497,3.80513,2628.1,2627.7,0.04091113]
[1730890329709,0.460283,2628.1,2627.6,0.0412398]
[1730890330000,3.80546,2627.8,2627.7,0.04120547]
[1730890330163,3.80546,2627.8,2627.3,0.769]
[1730890330164,3.80546,2627.8,2627.3,4.57517]
[1730890330363,3.80546,2627.8,2627.7,0.04118219]
[1730890330698,3.80546,2627.8,2627.3,0.769]
[1730890330699,4.60996,2627.8,2627.3,0.769]
[1730890330901,4.60996,2627.8,2627.7,0.04118219]
[1730890331109,3.8057,2627.7,2627.0,3.80662]
[1730890331263,3.8057,2627.7,2627.2,3.80632]
[1730890331458,3.8057,2627.7,2627.3,0.04102833]
[1730890331691,3.8057,2627.7,2627.2,3.80626]
[1730890331886,3.80576,2627.6,2627.2,3.80626]
[1730890332103,3.80576,2627.6,2627.3,0.04102833]
[1730890332535,3.80576,2627.6,2627.1,3.80644]
[1730890332840,3.80576,2627.6,2627.4,0.04099399]
[1730890333022,3.80576,2627.6,2627.2,3.80633]
[1730890333737,3.80576,2627.6,2627.3,0.04112537]
[1730890333942,4.78160336,2627.6,2627.3,0.04112537]
[1730890334238,4.78160336,2627.6,2627.4,0.04109103]
[1730890334601,4.78160336,2627.6,2627.2,3.80633]
[1730890334801,4.78160336,2627.6,2627.5,0.0410567]
[1730890335028,4.78160336,2627.6,2627.2,3.80633]
[1730890335234,0.799,2627.8,2627.1,0.7618]
[1730890335542,4.60454,2627.8,2627.3,3.80609]
[1730890335911,0.799,2627.8,2627.4,3.84711492]
[1730890336266,3.80513,2628.1,2627.6,3.80573]
[1730890336267,0.7513,2628.0,2627.6,3.80573]
[1730890336547,0.7513,2628.0,2627.7,0.04095698]
[1730890336699,1.206943,2628.0,2627.7,0.04095698]
[1730890338247,0.455643,2628.0,2627.6,7.61135]
[1730890338430,0.455643,2628.0,2627.8,0.04082173]
[1730890338616,4.63808,2628.2,2627.7,3.84642606]
[1730890338824,0.8332,2628.2,2627.9,0.04078741]
[1730890339012,4.63809,2628.2,2627.8,0.04082173]
[1730890339203,4.63809,2628.2,2627.7,3.80557]
[1730890339548,5.4480668,2628.2,2627.9,0.040768]
[1730890339760,5.4480668,2628.2,2627.8,0.04080233]
[1730890339904,5.4480668,2628.2,2627.7,3.80557]
[1730890340104,5.4480668,2628.2,2627.8,0.04080233]
[1730890340304,5.4480668,2628.2,2627.7,3.80557]
[1730890340547,0.92528968,2628.1,2627.8,0.04080233]
[1730890340840,4.73040968,2628.1,2627.6,3.80574]
[1730890341017,8.53550968,2628.1,2627.9,0.0407486]
[1730890341217,8.53550968,2628.1,2627.6,3.80574]
[1730890341744,3.80546,2627.8,2627.7,0.04081725]
[1730890342048,3.8058,2627.6,2627.1,4.56807]
[1730890342652,3.8058,2627.6,2627.1,8.37447]
[1730890342940,3.8058,2627.6,2627.2,3.80632]
[1730890343544,3.8058,2627.6,2627.1,4.56807]
[1730890343856,3.80597,2627.5,2627.1,4.56807]
[1730890344620,3.80597,2627.5,2627.1,4.56712724]
[1730890344867,3.80597,2627.5,2627.2,0.1]
[1730890346359,0.836324,2627.6,2627.2,0.1]
[1730890346525,4.642154,2627.6,2627.2,0.1]
[1730890346729,0.9199664,2627.5,2627.2,0.1]
[1730890347242,0.9199664,2627.5,2627.2,3.90631]
[1730890349625,0.9199664,2627.5,2627.3,0.03956295]
[1730890350085,0.9199664,2627.5,2627.2,0.1]
[1730890350245,3.80583,2627.6,2627.4,0.03952861]
[1730890350446,4.55751,2627.7,2627.3,0.03956295]
[1730890350768,4.55751,2627.7,2627.4,0.03952861]
[1730890351359,3.80575,2627.6,2627.4,0.03952861]
[1730890351562,0.455765,2627.5,2627.2,0.1]
[1730890351783,0.455765,2627.5,2627.3,3.80618]
[1730890351943,0.455765,2627.5,2627.2,3.90623]
[1730890352148,0.455765,2627.5,2627.3,0.03956295]
[1730890352683,0.455765,2627.5,2627.2,3.90623]
[1730890352876,0.455765,2627.5,2627.4,0.03952861]
[1730890353061,0.455765,2627.5,2627.3,0.03956295]
[1730890353265,0.455765,2627.5,2627.4,0.03952861]
[1730890353588,0.455765,2627.5,2627.2,3.90623]
[1730890353754,0.455765,2627.5,2627.4,0.03952861]
[1730890354087,0.455765,2627.5,2627.3,0.03956295]
[1730890354246,0.455765,2627.5,2627.4,0.03952861]
[1730890354650,0.455765,2627.5,2627.2,3.90623]
[1730890354851,0.455765,2627.5,2627.4,0.03952861]
[1730890355110,0.455765,2627.5,2627.3,0.03956295]
[1730890355387,0.455765,2627.5,2627.4,0.03952861]
[1730890355852,0.455765,2627.5,2627.2,3.90623]
[1730890356170,0.763,2627.9,2627.3,0.03956295]
[1730890356375,3.80548,2627.8,2627.3,3.84568295]
[1730890357404,0.793,2628.1,2627.6,3.80569]
[1730890357565,4.59804,2628.1,2627.6,3.80567]
[1730890357763,3.80519,2628.0,2627.7,0.03930592]
[1730890359312,3.80519,2628.0,2627.5,3.80588]
[1730890359776,3.80519,2628.0,2627.6,0.03867841]
[1730890359977,5.438331,2628.1,2627.6,3.84438841]
[1730890360604,4.59803,2628.1,2627.7,3.80558]
[1730890360961,4.59803,2628.1,2627.8,0.03859812]
[1730890361405,3.80503,2628.1,2627.9,0.7513]
[1730890361569,3.80503,2628.1,2627.9,0.038576]
[1730890362004,3.80503,2628.1,2627.7,4.55688]
[1730890362205,3.80503,2628.1,2628.0,0.03854167]
[1730890362513,4.56601,2628.1,2627.7,4.55688]
[1730890362807,3.80503,2628.1,2627.7,4.55688]
[1730890363014,3.80503,2628.1,2627.8,0.03856151]
[1730890363190,0.822,2628.0,2627.8,0.03856151]
[1730890363366,0.822,2628.0,2627.6,7.61138]
[1730890363567,0.822,2628.0,2627.9,0.03849004]
[1730890363911,1.284703,2628.0,2627.6,3.80569]
[1730890364079,0.822,2628.0,2627.9,0.03849004]
[1730890364628,0.822,2628.0,2627.7,3.80557]
[1730890364786,0.822,2628.0,2627.9,0.03849004]
[1730890364961,4.59749,2628.2,2627.8,0.03852437]
[1730890365166,1.252349,2628.2,2627.9,0.03849004]
[1730890365569,5.057239,2628.2,2627.9,0.03849004]
[1730890366279,8.862209,2628.2,2627.7,4.5714]
[1730890366493,3.80503,2628.1,2628.0,0.03842522]
[1730890366696,4.6912569,2628.1,2627.6,3.80574]
[1730890366928,4.6912569,2628.1,2628.0,0.03842522]
[1730890367521,4.6912569,2628.1,2627.6,7.61142]
[1730890367721,4.6912569,2628.1,2628.0,0.03842522]
[1730890367896,3.80503,2628.1,2627.7,3.8056]
[1730890368078,3.80503,2628.1,2628.0,0.0385115]
[1730890368275,3.80503,2628.1,2627.7,3.8056]
[1730890368474,3.80503,2628.1,2628.0,0.0385115]
[1730890368709,4.6912449,2628.1,2627.7,3.8056]
[1730890369337,4.6912449,2628.1,2627.8,0.03858015]
[1730890369683,4.6912449,2628.1,2627.7,3.8056]
[1730890369998,4.6912449,2628.1,2627.8,0.03858015]
[1730890370186,4.6912449,2628.1,2627.7,3.8056]
[1730890370386,4.6912449,2628.1,2627.9,0.03854583]
[1730890370587,4.6912449,2628.1,2627.7,3.8056]
[1730890370813,4.6912449,2628.1,2628.0,0.0385115]
[1730890370982,4.6912449,2628.1,2627.7,3.8056]
[1730890371318,4.6912449,2628.1,2628.0,0.03840284]
[1730890371514,4.6912449,2628.1,2627.7,3.8056]
[1730890371730,4.6912449,2628.1,2628.0,0.03840284]
[1730890372231,4.6912449,2628.1,2627.7,3.8056]
[1730890372413,4.6912449,2628.1,2628.0,0.03840284]
[1730890372622,4.6912449,2628.1,2627.7,3.8056]
[1730890372820,4.6912449,2628.1,2628.0,0.03840284]
[1730890373013,4.6912449,2628.1,2627.7,3.8056]
[1730890373224,4.6912449,2628.1,2628.0,0.03840284]
[1730890373388,4.6912449,2628.1,2627.7,3.8056]
[1730890373590,0.8862149,2628.1,2628.0,0.03840284]
[1730890373820,0.8862149,2628.1,2627.7,3.8056]
[1730890374017,4.59754,2628.2,2628.0,0.03799364]
[1730890374223,4.59754,2628.2,2627.7,3.8056]
[1730890374402,4.59754,2628.2,2628.1,0.03836464]
[1730890374733,4.59754,2628.2,2627.7,3.8056]
[1730890375025,0.7926,2628.2,2627.6,3.80574]
[1730890375235,4.264786,2628.1,2627.8,0.0384676]
[1730890375388,4.264786,2628.1,2627.7,0.03850193]
[1730890375588,4.264786,2628.1,2627.9,0.03843328]